bitfinex-derivatives/quotes_SOLF0:USTF0_20250409
["timestamp","ask_amount","ask_price","bid_price","bid_amount"]
[1744189177385,0.06638932,107.33,107.31,8.93196758]
[1744189177582,0.06638932,107.33,107.32,9.3224]
[1744189178486,0.06638932,107.33,107.31,18.73766112]
[1744189178787,0.06638932,107.33,107.3,0.05926768]
[1744189178986,9.3228,107.32,107.3,0.05926768]
[1744189179188,0.06638932,107.33,107.3,0.05926768]
[1744189179687,0.06638932,107.33,107.3,9.38256768]
[1744189180293,9.38798932,107.33,107.3,18.7969288]
[1744189180790,9.38798932,107.33,107.3,28.1207288]
[1744189180994,9.3224,107.32,107.3,18.7969288]
[1744189181292,0.06638932,107.33,107.3,18.7969288]
[1744189181492,0.06638932,107.33,107.3,28.1203288]
[1744189181691,9.38828932,107.33,107.3,28.1203288]
[1744189183491,0.06638932,107.33,107.3,28.1203288]
[1744189183695,9.3225,107.32,107.3,18.7969288]
[1744189185297,9.3225,107.32,107.31,12.00788473]
[1744189185600,9.38828932,107.33,107.31,12.00788473]
[1744189186203,9.3224,107.32,107.31,12.00788473]
[1744189188197,9.38838932,107.33,107.31,12.00788473]
[1744189189097,0.06638932,107.33,107.31,12.00788473]
[1744189189303,0.06638932,107.33,107.32,12.00788473]
[1744189190098,9.38788932,107.33,107.32,12.00788473]
[1744189190702,0.06638932,107.33,107.32,12.00788473]
[1744189191902,9.38788932,107.33,107.32,12.00788473]
[1744189192104,9.38788932,107.33,107.31,12.00788473]
[1744189192105,0.06638932,107.33,107.31,12.00788473]
[1744189192802,9.38828932,107.33,107.31,12.00788473]
[1744189193799,9.3224,107.32,107.31,12.00788473]
[1744189194001,0.06638932,107.33,107.31,12.00788473]
[1744189194504,9.3224,107.32,107.31,12.00788473]
[1744189195604,9.38818932,107.33,107.31,12.00788473]
[1744189196102,9.3224,107.32,107.31,12.00788473]
[1744189197204,0.06638932,107.33,107.31,12.00788473]
[1744189197405,0.06638932,107.33,107.32,12.00788473]
[1744189198710,9.32,107.35,107.32,21.33028473]
[1744189198915,9.32,107.35,107.34,12.00788473]
[1744189199509,9.32,107.35,107.33,12.00788473]
[1744189199711,9.32,107.35,107.33,12.07549089]
[1744189200312,9.32,107.35,107.34,12.00788473]
[1744189200511,9.39012761,107.36,107.34,12.00788473]
[1744189200815,42.603,107.4,107.35,20.94461159]
[1744189201015,42.603,107.4,107.37,12.00788473]
[1744189201407,4.463,107.4,107.37,12.00788473]
[1744189201709,18.621,107.46,107.37,38.14]
[1744189202012,9.38119418,107.43,107.4,0.06231267]
[1744189202314,0.06839418,107.43,107.4,0.06231267]
[1744189202615,38.20839418,107.43,107.4,0.06231267]
[1744189202807,38.20839418,107.43,107.34,13.28]
[1744189202808,12.00788473,107.42,107.34,13.28]
[1744189203011,12.00788473,107.41,107.36,12.00788473]
[1744189203316,16.47558473,107.42,107.36,12.00788473]
[1744189203516,9.317,107.39,107.36,12.00788473]
[1744189203709,9.317,107.39,107.37,12.00788473]
[1744189203910,1.62067761,107.46,107.41,9.3144]
[1744189204110,13.3075,107.48,107.44,12.00788473]
[1744189204313,0.07049762,107.45,107.42,0.06351369]
[1744189204512,4.4353,107.48,107.44,21.31918473]
[1744189204711,4.4353,107.48,107.46,12.00788473]
[1744189205110,38.1,107.5,107.47,12.00788473]
[1744189205311,314.8037411,107.6,107.47,18.70681218]
[1744189205511,8.7315,107.54,107.47,18.70681218]
[1744189205817,42.759,107.53,107.47,28.01611218]
[1744189206018,0.0666953,107.52,107.49,0.06435825]
[1744189206419,9.3061,107.51,107.49,0.06435825]
[1744189206714,0.0666953,107.52,107.49,18.77117043]
[1744189207021,0.0666953,107.52,107.49,0.06435825]
[1744189207419,9.3718953,107.52,107.49,0.06435825]
[1744189207619,0.0666953,107.52,107.49,0.06435825]
[1744189208519,0.0666953,107.52,107.5,9.3067]
[1744189208821,0.0666953,107.52,107.5,18.70681218]
[1744189209015,38.08,107.55,107.5,18.70681218]
[1744189209215,47.3829,107.55,107.51,9.3059]
[1744189209716,47.3829,107.55,107.52,18.70681218]
[1744189210218,9.3034,107.54,107.52,18.77519373]
[1744189210614,0.04417791,107.55,107.52,28.08009373]
[1744189210814,0.04417791,107.55,107.52,0.06838155]
[1744189211018,38.06,107.54,107.52,0.06838155]
[1744189211218,9.3041,107.53,107.52,8.155e-05]
[1744189211523,42.5253,107.54,107.47,18.70681218]
[1744189211711,8.9454,107.52,107.47,18.70681218]
[1744189211918,38.06,107.51,107.47,18.70681218]
[1744189212323,9.3072,107.5,107.45,28.01751218]
[1744189212514,9.36656216,107.5,107.48,0.06790936]
[1744189212714,0.05936216,107.5,107.48,0.06790936]
[1744189212915,9.3076,107.49,107.48,0.06790936]
[1744189213118,0.05936216,107.5,107.43,18.70681218]
[1744189213309,0.05936216,107.5,107.41,28.02071218]
[1744189213310,38.06,107.49,107.41,28.02071218]
[1744189213516,9.3112,107.45,107.41,18.70681218]
[1744189213829,38.06,107.46,107.41,18.70681218]
[1744189214121,38.06,107.49,107.43,18.70681218]
[1744189214321,0.07010084,107.45,107.44,9.3115]
[1744189214519,38.06,107.49,107.43,18.70681218]
[1744189214718,38.06,107.49,107.46,18.70681218]
[1744189214921,9.3072,107.5,107.46,18.70681218]
[1744189215117,38.06,107.51,107.46,18.70681218]
[1744189215317,8.9454,107.52,107.46,18.70681218]
[1744189215517,8.9454,107.52,107.47,9.3088]
[1744189215825,0.06895603,107.5,107.48,0.06324535]
[1744189216224,0.06895603,107.5,107.48,9.37144535]
[1744189216421,0.06895603,107.5,107.48,28.07825753]
[1744189216726,0.06895603,107.5,107.49,9.3076]
[1744189216922,0.06895603,107.5,107.48,0.06324535]
[1744189218516,9.3076,107.49,107.48,0.06324535]
[1744189218714,0.06895603,107.5,107.48,0.06324535]
[1744189219722,0.06895603,107.5,107.49,9.3076]
[1744189220026,0.06895603,107.5,107.48,0.06324535]
[1744189220223,9.37625603,107.5,107.48,0.06324535]
[1744189220421,0.06895603,107.5,107.48,0.06324535]
[1744189220927,0.06895603,107.5,107.48,9.37134535]
[1744189221627,0.06895603,107.5,107.49,9.3076]
[1744189223030,47.1307,107.55,107.51,9.3057]
[1744189223225,42.8056,107.55,107.51,18.70681218]
[1744189223424,38.04,107.57,107.51,18.70681218]
[1744189223625,9.3025,107.55,107.51,18.70681218]
[1744189223825,38.04,107.57,107.51,18.70681218]
[1744189224030,9.304,107.54,107.51,28.01221218]
[1744189224231,0.04141195,107.55,107.53,0.06601767]
[1744189224431,38.04,107.54,107.49,18.70681218]
[1744189224627,47.3433,107.54,107.53,0.06546723]
[1744189224829,38.04,107.56,107.49,18.70681218]
[1744189225131,0.04141195,107.55,107.52,0.06445415]
[1744189225321,9.3037,107.54,107.52,0.06445415]
[1744189226726,9.3037,107.54,107.52,9.36935415]
[1744189226932,9.3041,107.53,107.52,0.06445415]
[1744189227527,9.3037,107.54,107.52,0.06445415]
[1744189228036,9.3041,107.53,107.52,0.06445415]
[1744189228634,9.3036,107.54,107.52,0.06445415]
[1744189228929,0.04141195,107.55,107.52,0.06445415]
[1744189229126,9.3037,107.54,107.52,0.06445415]
[1744189229732,0.04141195,107.55,107.52,0.06445415]
[1744189229930,0.04141195,107.55,107.53,18.70681218]
[1744189230537,0.04141195,107.55,107.53,28.01061218]
[1744189230736,0.04141195,107.55,107.53,18.70681218]
[1744189231234,0.04141195,107.55,107.54,9.3033]
[1744189231434,52.0025,107.59,107.53,18.70681218]
[1744189231835,9.3005,107.58,107.55,9.302]
[1744189232230,42.7498,107.59,107.55,18.70681218]
[1744189232738,38.04,107.59,107.56,0.06707261]
[1744189233639,9.3003,107.58,107.56,9.36827261]
[1744189233838,38.04,107.59,107.56,0.06707261]
[1744189234238,4.4379,107.61,107.56,0.06707261]
[1744189234738,13.7357,107.61,107.58,9.2992]
[1744189235336,9.2983,107.6,107.58,9.36428382]
[1744189235538,9.2983,107.6,107.58,0.06508382]
[1744189236228,4.4379,107.61,107.58,0.06508382]
[1744189237234,9.299,107.59,107.58,0.06508382]
[1744189237439,37.98,107.59,107.54,9.3029]
[1744189237740,9.3014,107.57,107.54,9.3029]
[1744189238537,9.36648382,107.57,107.54,9.36995684]
[1744189238938,0.06508382,107.57,107.54,0.06705684]
[1744189239143,37.98,107.56,107.54,0.06705684]
[1744189239441,42.6541,107.56,107.54,0.06705684]
[1744189239636,0.06508382,107.57,107.54,0.06705684]
[1744189240133,0.06508382,107.57,107.56,9.3015]
[1744189240335,0.06508382,107.57,107.54,0.06705684]
[1744189240640,0.06508382,107.57,107.55,9.3024]
[1744189241034,0.06508382,107.57,107.55,18.70681218]
[1744189241238,0.06508382,107.57,107.55,9.302]
[1744189241937,0.06508382,107.57,107.54,0.06705684]
[1744189242437,38.04508382,107.57,107.54,0.06705684]
[1744189242642,18.70681218,107.55,107.51,147.41942063]
[1744189242941,37.98,107.54,107.51,84.63372063]
[1744189243534,18.70681218,107.53,107.5,292.15774395]
[1744189243739,18.70681218,107.53,107.5,278.00316781]
[1744189243940,18.70681218,107.53,107.5,249.74096781]
[1744189244137,9.3059,107.51,107.5,235.60036781]
[1744189244340,47.2859,107.51,107.5,207.38416781]
[1744189245341,9.3067,107.5,107.49,285.9266458]
[1744189245543,9.3067,107.5,107.49,256.9662458]
[1744189246245,9.3067,107.5,107.49,219.66725065]
[1744189246641,9.3067,107.5,107.49,0.0631659]
[1744189249248,192.99510377,107.5,107.49,0.0631659]
[1744189252257,9.3067,107.5,107.49,0.0631659]
[1744189254246,9.3067,107.5,107.49,6.59e-05]
[1744189255647,0.05951752,107.52,107.49,6.59e-05]
[1744189255849,38.07951752,107.52,107.49,6.59e-05]
[1744189256356,9.3062,107.51,107.49,6.59e-05]
[1744189257263,9.3067,107.5,107.49,6.59e-05]
[1744189257767,38.07951752,107.52,107.49,6.59e-05]
[1744189259062,9.3063,107.51,107.49,6.59e-05]
[1744189259262,38.07951752,107.52,107.49,6.59e-05]
[1744189259559,0.05951752,107.52,107.49,6.59e-05]
[1744189260466,38.02,107.51,107.49,6.59e-05]
[1744189261357,29.94341325,107.5,107.44,4.6992]
[1744189261551,29.94341325,107.5,107.44,14.0108]
[1744189261765,29.94341325,107.5,107.44,4.6992]
[1744189261967,9.3088,107.48,107.44,4.6992]
[1744189262152,38.02,107.47,107.44,4.6992]
[1744189262565,38.02,107.47,107.44,14.07829848]
[1744189262566,38.08261664,107.47,107.44,14.07829848]
[1744189263263,38.08261664,107.47,107.44,0.06749848]
[1744189263768,9.3102,107.46,107.44,0.06749848]
[1744189263965,38.08261664,107.47,107.44,0.06749848]
[1744189265270,38.08261664,107.47,107.44,9.37909848]
[1744189265467,38.08261664,107.47,107.44,0.06749848]
[1744189265968,9.3107,107.46,107.44,0.06749848]
[1744189266965,47.39241664,107.47,107.44,9.37939848]
[1744189268363,0.06261664,107.47,107.44,0.06749848]
[1744189269567,38.0,107.51,107.45,18.71092421]
[1744189269770,12.83186594,107.52,107.47,18.71092421]
[1744189270065,12.83186594,107.52,107.5,9.3067]
[1744189270266,12.83186594,107.52,107.49,18.71092421]
[1744189270466,22.13636594,107.53,107.5,9.306]
[1744189270668,0.06428032,107.52,107.5,9.306]
[1744189270967,0.06428032,107.52,107.49,0.06036594]
[1744189271165,38.0,107.51,107.49,0.06036594]
[1744189271469,47.3064,107.51,107.49,0.06036594]
[1744189273372,38.0,107.51,107.49,9.36766594]
[1744189273768,38.0,107.51,107.49,0.06036594]
[1744189273970,47.3059,107.51,107.49,0.06036594]
[1744189275866,9.3067,107.5,107.49,0.06036594]
[1744189278570,82.39912757,107.5,107.49,0.06036594]
[1744189279873,91.70582757,107.5,107.49,0.06036594]
[1744189280972,53.21022975,107.5,107.49,0.06036594]
[1744189281876,43.90352975,107.5,107.49,0.06036594]
[1744189282168,36.71342975,107.5,107.49,0.06036594]
[1744189282372,141.15052534,107.51,107.49,0.06036594]
[1744189282672,141.15052534,107.51,107.5,9.3067]
[1744189283271,131.92642771,107.52,107.5,8.89116437]
[1744189283473,131.92642771,107.52,107.49,0.06036594]
[1744189283671,131.92642771,107.52,107.5,8.89506328]
[1744189283874,131.92642771,107.52,107.49,0.06036594]
[1744189284275,9.3058,107.52,107.49,0.06036594]
[1744189284570,0.0633663,107.52,107.49,9.36726594]
[1744189284771,0.0633663,107.52,107.49,0.06036594]
[1744189284967,9.3066,107.51,107.49,0.06036594]
[1744189285168,0.0633663,107.52,107.49,0.06036594]
[1744189286476,9.3687663,107.52,107.49,0.06036594]
[1744189287072,9.3687663,107.52,107.5,9.3067]
[1744189287979,0.0633663,107.52,107.49,9.36766594]
[1744189288282,0.0633663,107.52,107.49,0.06036594]
[1744189288477,0.0633663,107.52,107.5,9.3064]
[1744189289277,0.0633663,107.52,107.49,0.06036594]
[1744189289779,0.0633663,107.52,107.5,8.90912591]
[1744189289982,0.0633663,107.52,107.49,0.06036594]
[1744189290279,0.0633663,107.52,107.5,8.90781552]
[1744189290578,0.0633663,107.52,107.49,0.06036594]
[1744189290778,0.0633663,107.52,107.5,8.9045158]
[1744189291080,0.0633663,107.52,107.51,18.21025477]
[1744189291281,0.0633663,107.52,107.51,9.3059]
[1744189291984,0.0633663,107.52,107.49,0.06036594]
[1744189292282,9.3690663,107.52,107.49,0.06036594]
[1744189292580,0.0633663,107.52,107.49,0.06036594]
[1744189293582,9.3059,107.51,107.49,0.06036594]
[1744189293983,47.2867,107.5,107.49,0.06036594]
[1744189297981,37.98,107.5,107.49,0.06036594]
[1744189298177,37.98,107.5,107.44,18.68581753]
[1744189298387,18.68581753,107.48,107.4,18.68581753]
[1744189298680,42.531,107.47,107.41,8.91051892]
[1744189298875,42.531,107.47,107.41,9.3142]
[1744189299078,18.68581753,107.46,107.38,18.68581753]
[1744189299277,18.68581753,107.46,107.39,8.91768969]
[1744189299579,0.0641314,107.43,107.41,0.06642626]
[1744189299787,37.96,107.42,107.41,0.06642626]
[1744189300082,47.2737,107.42,107.41,0.06642626]
[1744189300379,9.316,107.4,107.36,28.00421753]
[1744189300585,42.5579,107.42,107.36,28.00421753]
[1744189300776,47.0806,107.42,107.36,28.00421753]
[1744189300979,9.3159,107.4,107.36,28.00421753]
[1744189301288,9.3159,107.4,107.36,9.3184]
[1744189301677,0.06232399,107.39,107.37,0.06772952]
[1744189304080,0.06232399,107.39,107.37,9.38522952]
[1744189305189,0.06232399,107.39,107.37,0.06772952]
[1744189305879,9.37912399,107.39,107.37,0.06772952]
[1744189306891,0.06232399,107.39,107.37,9.38542952]
[1744189307592,0.06232399,107.39,107.37,0.06772952]
[1744189308093,9.37912399,107.39,107.37,0.06772952]
[1744189308885,0.06232399,107.39,107.37,9.38532952]
[1744189310193,9.37882399,107.39,107.37,0.06772952]
[1744189311695,9.37882399,107.39,107.37,9.38562952]
[1744189311890,9.3171,107.38,107.37,0.06772952]
[1744189313794,37.98,107.38,107.32,67.96471037]
[1744189314092,4.5687,107.37,107.3,67.98471037]
[1744189314287,4.5687,107.37,107.33,9.3215]
[1744189314489,9.3201,107.35,107.3,67.98471037]
[1744189314791,4.5687,107.37,107.3,67.98471037]
[1744189314994,0.06561714,107.34,107.31,0.06179612]
[1744189315595,0.06561714,107.34,107.33,9.3215]
[1744189317296,37.98,107.38,107.32,29.98471037]
[1744189317697,47.2975,107.38,107.32,29.98471037]
[1744189318199,47.2975,107.38,107.35,9.3191]
[1744189318396,0.06715532,107.38,107.35,0.06753877]
[1744189318605,0.06715532,107.38,107.37,9.318]
[1744189319595,0.06715532,107.38,107.36,9.3185]
[1744189319901,9.38455532,107.38,107.36,9.3185]
[1744189320200,38.06715532,107.38,107.35,0.06753877]
[1744189320697,9.3184,107.37,107.35,9.38723877]
[1744189320897,38.06715532,107.38,107.35,0.06753877]
[1744189321288,38.06715532,107.38,107.29,18.75882058]
[1744189321289,56.8259759,107.38,107.29,18.75882058]
[1744189321497,18.75882058,107.36,107.27,18.75882058]
[1744189321697,9.3248,107.3,107.27,18.75882058]
[1744189321995,38.0,107.31,107.23,18.75882058]
[1744189322198,4.6871,107.29,107.26,9.3272]
[1744189322405,14.0128,107.29,107.26,9.38886187]
[1744189322700,0.06025066,107.28,107.26,9.38886187]
[1744189323504,9.38615066,107.28,107.26,9.38886187]
[1744189324004,9.38615066,107.28,107.26,0.06166187]
[1744189325005,0.06025066,107.28,107.26,0.06166187]
[1744189325700,9.38615066,107.28,107.26,9.38866187]
[1744189325996,9.38615066,107.28,107.26,0.06166187]
[1744189326303,9.3267,107.27,107.26,0.06166187]
[1744189328192,47.3267,107.27,107.26,0.06166187]
[1744189328494,38.0,107.27,107.22,9.331]
[1744189328703,38.0,107.27,107.18,30.04624717]
[1744189328903,38.0,107.27,107.17,38.0]
[1744189329300,9.3323,107.21,107.16,30.04624717]
[1744189329499,38.0,107.22,107.21,0.06417973]
[1744189329700,38.0,107.22,107.16,30.04624717]
[1744189329701,38.0,107.23,107.16,30.04624717]
[1744189329899,9.3316,107.22,107.16,30.04624717]
[1744189330107,38.06570947,107.23,107.2,0.06146899]
[1744189330308,38.0,107.23,107.2,0.06146899]
[1744189330604,38.06548925,107.23,107.2,0.06146899]
[1744189331208,9.3316,107.22,107.2,0.06146899]
[1744189331406,38.06548925,107.23,107.2,0.06146899]
[1744189331598,9.3315,107.22,107.2,0.06146899]
[1744189331908,38.06548925,107.23,107.2,0.06146899]
[1744189332305,9.331,107.22,107.2,0.06146899]
[1744189332605,38.06548925,107.23,107.2,0.06146899]
[1744189333506,38.06548925,107.23,107.14,30.33054717]
[1744189333805,9.3323,107.21,107.18,9.3341]
[1744189334007,38.0,107.23,107.14,30.33054717]
[1744189334308,38.0,107.23,107.2,9.3327]
[1744189334807,38.0692012,107.23,107.2,0.06872586]
[1744189335808,0.0692012,107.23,107.2,0.06872586]
[1744189336511,0.0692012,107.23,107.22,9.331]
[1744189336812,0.0692012,107.23,107.21,9.3315]
[1744189337008,0.0692012,107.23,107.2,0.06872586]
[1744189337909,0.0692012,107.23,107.22,9.331]
[1744189338214,0.0692012,107.23,107.2,0.06872586]
[1744189338703,9.3315,107.22,107.2,0.06872586]
[1744189339107,0.0692012,107.23,107.2,0.06872586]
[1744189340109,9.3314,107.22,107.2,0.06872586]
[1744189340806,38.02,107.22,107.2,0.06872586]
[1744189341006,0.0692012,107.23,107.2,0.06872586]
[1744189341714,0.0692012,107.23,107.22,9.331]
[1744189344516,42.4439,107.27,107.25,9.3283]
[1744189344711,42.4439,107.27,107.22,30.04624717]
[1744189344911,13.6725,107.28,107.22,30.04624717]
[1744189345216,13.6725,107.28,107.25,9.3278]
[1744189345413,4.3463,107.28,107.23,18.7808443]
[1744189345611,4.4108372,107.28,107.25,0.06890321]
[1744189346314,42.4308372,107.28,107.25,9.39730321]
[1744189346519,9.3273,107.27,107.25,9.39730321]
[1744189347018,9.3276,107.26,107.25,0.06890321]
[1744189348022,9.3269,107.27,107.25,0.06890321]
[1744189348319,42.4308372,107.28,107.25,0.06890321]
[1744189348519,0.0645372,107.28,107.27,9.3267]
[1744189349419,4.4459,107.32,107.27,56.8008443]
[1744189349619,4.4459,107.32,107.29,18.7808443]
[1744189349821,4.4803,107.34,107.31,9.3228]
[1744189350021,4.4803,107.34,107.29,18.7808443]
[1744189350410,4.4803,107.34,107.29,9.3245]
[1744189350616,0.06621609,107.33,107.3,0.0658386]
[1744189350816,9.3232,107.31,107.3,0.0658386]
[1744189351419,9.3251,107.29,107.25,604.8008443]
[1744189351615,9.3251,107.29,107.26,9.3271]
[1744189351810,4.46,107.31,107.25,56.8008443]
[1744189352016,9.3259,107.28,107.25,66.1287443]
[1744189352422,9.3255,107.29,107.25,56.8008443]
[1744189352624,0.06762268,107.28,107.26,9.3271]
[1744189353333,0.06762268,107.28,107.25,0.06470239]
[1744189354127,9.3276,107.26,107.25,0.06470239]
[1744189355322,0.06762268,107.28,107.25,0.06470239]
[1744189356028,0.06762268,107.28,107.27,9.3267]
[1744189364429,0.06762268,107.28,107.27,18.08692707]
[1744189365339,0.06762268,107.28,107.26,9.3271]
[1744189365536,0.06762268,107.28,107.25,0.06470239]
[1744189365739,0.06762268,107.28,107.27,9.3267]
[1744189366644,2.268e-05,107.28,107.27,18.08980529]
[1744189366940,2.268e-05,107.28,107.27,22.14641376]
[1744189368241,2.268e-05,107.28,107.27,18.08980529]
[1744189369950,2.268e-05,107.28,107.27,9.3267]
[1744189370744,2.268e-05,107.28,107.26,9.327]
[1744189371142,2.268e-05,107.28,107.25,548.06470239]
[1744189371143,2.268e-05,107.28,107.27,9.3267]
[1744189373048,2.268e-05,107.28,107.25,0.06470239]
[1744189373647,2.268e-05,107.28,107.27,9.3267]
[1744189374653,2.268e-05,107.28,107.26,9.3271]
[1744189374844,2.268e-05,107.28,107.25,0.06470239]
[1744189375040,2.268e-05,107.28,107.26,12.81489985]
[1744189375247,2.268e-05,107.28,107.27,36.8528383]
[1744189376053,2.268e-05,107.28,107.27,28.09308502]
[1744189376241,2.268e-05,107.28,107.27,36.85626326]
[1744189376441,2.268e-05,107.28,107.27,27.52956326]
[1744189376641,2.268e-05,107.28,107.27,18.76638502]
[1744189376860,2.268e-05,107.28,107.26,9.327]
[1744189377153,2.268e-05,107.28,107.25,28.15908741]
[1744189377453,2.268e-05,107.28,107.26,8.76843819]
[1744189377653,2.268e-05,107.28,107.26,9.3275]
[1744189378451,2.268e-05,107.28,107.25,0.06470239]
[1744189378857,9.3272,107.27,107.25,0.06470239]
[1744189379159,2.268e-05,107.28,107.25,0.06470239]
[1744189379359,9.3276,107.26,107.25,0.06470239]
[1744189379959,9.3296,107.24,107.21,604.74638502]
[1744189380259,9.2844,107.27,107.22,8.78221331]
[1744189380455,9.2844,107.27,107.19,18.76638502]
[1744189380657,9.331,107.22,107.2,8.79578321]
[1744189380856,37.98,107.24,107.18,9.3341]
[1744189381057,9.3321,107.21,107.19,8.79714468]
[1744189381353,0.06553301,107.22,107.2,0.06322319]
[1744189382165,9.3319,107.21,107.2,0.06322319]
[1744189383168,0.06553301,107.22,107.2,0.06322319]
[1744189383668,0.06553301,107.22,107.21,9.3319]
[1744189384060,0.06553301,107.22,107.21,8.79012981]
[1744189384257,0.06553301,107.22,107.21,18.12202981]
[1744189385069,0.06553301,107.22,107.21,22.19295589]
[1744189385767,0.06553301,107.22,107.21,18.12202981]
[1744189385973,0.06553301,107.22,107.21,9.3319]
[1744189386473,0.06553301,107.22,107.21,22.2030582]
[1744189388277,38.04553301,107.22,107.14,18.76638502]
[1744189388475,38.04553301,107.22,107.15,12.88390458]
[1744189388476,4.5349,107.21,107.15,12.88390458]
[1744189388770,27.64358502,107.21,107.12,18.76638502]
[1744189388976,27.64358502,107.21,107.13,8.81857299]
[1744189389165,520.10358502,107.21,107.12,18.76638502]
[1744189389363,18.76638502,107.19,107.1,18.76638502]
[1744189389566,38.05025898,107.18,107.16,0.0683289]
[1744189389764,37.98,107.18,107.12,9.3393]
[1744189389976,38.04235301,107.18,107.16,0.06754929]
[1744189390673,0.06235301,107.18,107.16,0.06754929]
[1744189391277,0.06235301,107.18,107.17,9.3354]
[1744189391475,4.5349,107.21,107.16,38.04754929]
[1744189391670,4.5349,107.21,107.17,8.77673659]
[1744189391870,13.8669,107.21,107.18,9.3341]
[1744189392175,4.5349,107.21,107.16,37.98]
[1744189392369,4.5349,107.21,107.17,8.77658166]
[1744189392577,4.5349,107.21,107.19,9.3331]
[1744189392776,0.06847164,107.2,107.19,9.3331]
[1744189393075,0.06847164,107.2,107.18,0.06654507]
[1744189393575,0.06847164,107.2,107.19,9.3337]
[1744189394080,0.06847164,107.2,107.18,0.06654507]
[1744189394380,0.06847164,107.2,107.19,9.3337]
[1744189394581,0.06847164,107.2,107.18,0.06654507]
[1744189394771,0.06847164,107.2,107.18,9.40054507]
[1744189394972,0.06847164,107.2,107.18,0.06654507]
[1744189395668,0.06847164,107.2,107.19,9.3337]
[1744189396675,0.06847164,107.2,107.19,47.3337]
[1744189398077,7.164e-05,107.2,107.19,47.3337]
[1744189398782,8.7419,107.25,107.19,38.0]
[1744189399082,8.7419,107.25,107.2,8.76777134]
[1744189399278,18.0704,107.25,107.19,68.09599817]
[1744189399478,4.4054,107.25,107.2,8.76867074]
[1744189399673,42.5508,107.28,107.19,68.09599817]
[1744189399880,9.3273,107.27,107.24,9.3287]
[1744189400076,0.06769234,107.25,107.24,9.3287]
[1744189400284,0.06769234,107.25,107.24,9.39268856]
[1744189400598,0.06769234,107.25,107.24,0.06398856]
[1744189401586,0.06769234,107.25,107.22,9.3307]
[1744189402175,9.39659234,107.25,107.22,9.3307]
[1744189402581,9.39659234,107.25,107.22,9.39148223]
[1744189403186,9.39659234,107.25,107.23,9.3302]
[1744189403791,0.06769234,107.25,107.24,9.3293]
[1744189404682,0.06769234,107.25,107.23,9.3297]
[1744189404886,0.06769234,107.25,107.22,0.06078223]
[1744189405084,0.06769234,107.25,107.22,9.39138223]
[1744189405788,9.39659234,107.25,107.22,9.39138223]
[1744189406489,9.39659234,107.25,107.23,9.3302]
[1744189408186,0.06769234,107.25,107.24,9.3293]
[1744189408888,0.06769234,107.25,107.23,9.3296]
[1744189409598,0.06769234,107.25,107.24,9.3293]
[1744189410688,9.39619234,107.25,107.23,9.3296]
[1744189412290,9.3296,107.24,107.22,9.39138223]
[1744189412789,9.3302,107.23,107.22,0.06078223]
[1744189414491,8.9969,107.24,107.22,0.06078223]
[1744189415193,9.3302,107.23,107.22,0.06078223]
[1744189418788,8.9969,107.24,107.18,18.79713952]
[1744189418989,4.7691,107.22,107.16,18.79713952]
[1744189419195,42.7291,107.22,107.17,8.8066928]
[1744189419393,9.3325,107.21,107.18,9.3341]
[1744189419690,42.7291,107.22,107.16,18.79713952]
[1744189419988,9.3336,107.2,107.18,0.06419991]
[1744189420192,0.06365748,107.2,107.14,18.79713952]
[1744189420397,9.3347,107.18,107.15,8.81442261]
[1744189420590,4.7811,107.19,107.12,18.79713952]
[1744189420786,4.7811,107.19,107.14,18.79713952]
[1744189420995,4.7811,107.19,107.15,12.8985093]
[1744189421186,4.7811,107.19,107.14,18.79713952]
[1744189421390,0.06629994,107.18,107.16,0.05989667]
[1744189422094,0.06629994,107.18,107.17,9.3346]
[1744189423097,0.06629994,107.18,107.16,0.05989667]
[1744189424000,9.40139994,107.18,107.16,0.05989667]
[1744189424201,9.40139994,107.18,107.16,9.39589667]
[1744189425904,9.3354,107.17,107.16,0.05989667]
[1744189426205,9.3354,107.17,107.15,9.3366]
[1744189426401,9.3373,107.15,107.13,9.3385]
[1744189426606,42.7611,107.19,107.13,9.3385]
[1744189427205,9.3366,107.16,107.14,9.3379]
[1744189427406,0.06557358,107.17,107.15,0.06011938]
[1744189428311,9.40137358,107.17,107.15,9.39721938]
[1744189430002,47.3163,107.16,107.1,18.79713952]
[1744189430313,47.3163,107.16,107.11,8.81722573]
[1744189430504,9.3378,107.15,107.12,9.3394]
[1744189431312,9.39971419,107.15,107.12,9.40795812]
[1744189431614,0.06191419,107.15,107.12,0.06855812]
[1744189432115,0.06191419,107.15,107.14,9.338]
[1744189435016,0.06191419,107.15,107.12,18.86569764]
[1744189435213,0.06191419,107.15,107.13,9.3384]